bitfinex-derivatives/quotes_BTCF0:USTF0_20251028
["timestamp","ask_amount","ask_price","bid_price","bid_amount"]
[1761621247485,0.13496591,113850.0,113840.0,0.25487186]
[1761621247784,0.13496591,113850.0,113840.0,0.27918186]
[1761621247989,0.06140598,113850.0,113840.0,0.27918186]
[1761621248292,0.06140598,113850.0,113840.0,0.67807401]
[1761621248493,0.00507598,113850.0,113840.0,0.68539401]
[1761621248793,0.00507598,113850.0,113840.0,0.68239401]
[1761621249587,0.00507598,113850.0,113840.0,1.28239401]
[1761621249983,0.00507598,113850.0,113840.0,0.68239401]
[1761621250194,0.00507598,113850.0,113840.0,0.69136801]
[1761621250593,0.1432876,113870.0,113860.0,0.130559]
[1761621250795,0.05546,113870.0,113860.0,0.130559]
[1761621250987,0.05546,113870.0,113850.0,0.07890282]
[1761621251192,0.1430892,113860.0,113850.0,0.07890282]
[1761621251390,0.46311663,113860.0,113850.0,0.07890282]
[1761621251595,0.1430969,113850.0,113840.0,0.05632853]
[1761621252089,0.1430969,113850.0,113840.0,0.17949266]
[1761621252482,0.05526,113850.0,113840.0,0.17949266]
[1761621252694,0.1430969,113850.0,113840.0,0.17949266]
[1761621253202,0.1430969,113850.0,113840.0,0.17449266]
[1761621253893,0.1480969,113850.0,113840.0,0.17549266]
[1761621260091,0.06026,113850.0,113840.0,0.17549266]
[1761621260298,0.1480944,113850.0,113840.0,0.26333476]
[1761621260496,0.1480944,113850.0,113840.0,0.17549266]
[1761621261097,0.06026,113850.0,113840.0,0.58336329]
[1761621261304,0.005,113850.0,113840.0,0.59060329]
[1761621261504,0.026,113850.0,113840.0,0.73770329]
[1761621261797,0.005,113850.0,113840.0,0.73770329]
[1761621262302,0.04709,113850.0,113840.0,0.73770329]
[1761621262702,0.005,113850.0,113840.0,0.81660611]
[1761621262905,0.026,113850.0,113840.0,0.81660611]
[1761621263304,0.04709,113850.0,113840.0,0.81660611]
[1761621266007,0.04709,113850.0,113840.0,1.71268611]
[1761621266202,0.04709,113850.0,113840.0,1.41660611]
[1761621266404,0.04709,113850.0,113840.0,2.31268611]
[1761621267711,0.04709,113850.0,113840.0,2.23136083]
[1761621267911,0.06026,113850.0,113840.0,2.14521801]
[1761621269725,0.06026,113850.0,113840.0,2.21206062]
[1761621269922,0.04709,113850.0,113840.0,2.21206062]
[1761621270227,0.02638,113850.0,113840.0,2.21206062]
[1761621271025,0.04817,113850.0,113840.0,2.21206062]
[1761621271823,0.04817,113850.0,113840.0,1.90651586]
[1761621272023,0.02638,113850.0,113840.0,2.21206062]
[1761621272226,0.1443613,113870.0,113860.0,0.087829]
[1761621272432,0.05654,113870.0,113860.0,0.43612376]
[1761621272823,0.1443612,113870.0,113860.0,0.43612376]
[1761621273425,0.1092012,113870.0,113860.0,0.43612376]
[1761621273633,0.1491512,113870.0,113860.0,0.44112376]
[1761621275829,0.1441512,113870.0,113860.0,0.43612376]
[1761621276031,0.1441512,113870.0,113860.0,0.05675]
[1761621276032,0.30192358,113870.0,113860.0,0.05675]
[1761621276226,0.30192358,113870.0,113860.0,0.03508]
[1761621276425,0.30192358,113870.0,113860.0,0.16677238]
[1761621276727,0.45469596,113870.0,113860.0,0.014]
[1761621276921,0.1009997,113850.0,113840.0,0.12165282]
[1761621277232,0.29694208,113850.0,113840.0,0.3280474]
[1761621278227,0.29694208,113850.0,113840.0,0.3290474]
[1761621278532,0.03454,113850.0,113840.0,0.56966418]
[1761621278830,0.05633,113850.0,113840.0,0.56966418]
[1761621279327,0.02638,113850.0,113840.0,0.58061418]
[1761621280131,0.02638,113850.0,113840.0,0.57961418]
[1761621280331,0.1360067,113850.0,113840.0,0.48281978]
[1761621280533,0.06133,113850.0,113840.0,0.57066418]
[1761621281833,0.06133,113850.0,113840.0,0.50384884]
[1761621283429,0.06133,113850.0,113840.0,0.58275166]
[1761621284532,0.06133,113850.0,113840.0,0.50384884]
[1761621285033,0.1491666,113850.0,113840.0,0.50384884]
[1761621286137,0.1491666,113850.0,113840.0,0.13452502]
[1761621286338,0.1491666,113850.0,113840.0,0.02308]
[1761621286838,0.1491666,113850.0,113840.0,0.04475]
[1761621288240,0.1491684,113850.0,113840.0,0.04475]
[1761621288431,0.1491684,113850.0,113840.0,0.28347942]
[1761621289639,0.1491684,113850.0,113840.0,0.04475]
[1761621291434,0.1491684,113850.0,113840.0,0.002]
[1761621291734,0.38789782,113850.0,113840.0,0.002]
[1761621291940,0.1491684,113850.0,113840.0,0.002]
[1761621292335,0.38789782,113850.0,113840.0,0.002]
[1761621292642,0.0878539,113830.0,113820.0,0.1471]
[1761621292942,0.1441839,113830.0,113820.0,0.1471]
[1761621293147,0.05633,113820.0,113810.0,0.93887]
[1761621293539,0.05633,113820.0,113810.0,0.94776146]
[1761621294148,0.1441916,113820.0,113810.0,0.90501146]
[1761621294447,0.1441916,113820.0,113810.0,0.9172]
[1761621294638,0.1441916,113820.0,113810.0,0.94387]
[1761621294839,0.05633,113820.0,113810.0,0.94387]
[1761621295038,0.1441916,113820.0,113810.0,0.90984046]
[1761621295246,0.1441916,113820.0,113810.0,0.94387]
[1761621295739,0.1491916,113820.0,113810.0,0.94387]
[1761621296141,0.38792102,113820.0,113810.0,0.90112]
[1761621296844,0.1491916,113820.0,113810.0,0.94387]
[1761621297245,0.1491916,113820.0,113810.0,0.90112]
[1761621297545,0.38792102,113820.0,113810.0,0.90112]
[1761621298044,0.1491916,113820.0,113810.0,0.90112]
[1761621298445,0.0878845,113790.0,113780.0,0.006457]
[1761621298747,0.33661392,113790.0,113780.0,0.006457]
[1761621299142,0.35085994,113790.0,113780.0,0.027637]
[1761621299445,0.08797382,113790.0,113780.0,0.049127]
[1761621299647,0.32670324,113790.0,113780.0,0.049127]
[1761621299945,0.00508932,113790.0,113780.0,0.049127]
[1761621300638,0.00508932,113790.0,113780.0,0.488447]
[1761621301143,0.0878624,113820.0,113780.0,0.5763391]
[1761621301339,0.32659182,113820.0,113810.0,0.04267]
[1761621301542,0.0878624,113820.0,113810.0,0.04267]
[1761621301751,0.32659182,113820.0,113810.0,0.04267]
[1761621302047,0.0878624,113820.0,113810.0,0.04267]
[1761621302251,0.32659182,113820.0,113810.0,0.04267]
[1761621302547,0.33059182,113820.0,113810.0,0.04267]
[1761621303240,0.33259182,113820.0,113810.0,0.04267]
[1761621303742,0.0938624,113820.0,113810.0,0.04267]
[1761621303948,0.33059182,113820.0,113810.0,0.04267]
[1761621304147,0.0928624,113820.0,113810.0,0.04267]
[1761621304550,0.005,113820.0,113810.0,0.04267]
[1761621304737,0.001,113820.0,113810.0,0.04267]
[1761621304943,0.0938612,113820.0,113810.0,0.04267]
[1761621305449,0.006,113820.0,113810.0,0.04267]
[1761621305949,0.0888612,113820.0,113810.0,0.04267]
[1761621306243,0.0928612,113820.0,113810.0,0.04267]
[1761621306544,0.005,113820.0,113810.0,0.04267]
[1761621306746,0.005,113820.0,113810.0,0.72071942]
[1761621306951,0.005,113820.0,113810.0,0.80858832]
[1761621307143,0.005,113820.0,113810.0,0.5698589]
[1761621307339,0.005,113820.0,113810.0,0.80858832]
[1761621307749,0.005,113820.0,113810.0,0.48199]
[1761621307943,0.005,113820.0,113810.0,0.80858832]
[1761621308340,0.005,113820.0,113810.0,0.8175487]
[1761621308946,0.005,113820.0,113810.0,0.57881928]
[1761621309148,0.005,113820.0,113810.0,0.8175487]
[1761621310141,0.0878426,113850.0,113840.0,0.05715]
[1761621310755,0.32657202,113850.0,113840.0,0.05715]
[1761621311448,0.0878426,113850.0,113840.0,0.05715]
[1761621311652,0.0918426,113850.0,113840.0,0.05715]
[1761621312549,0.0928426,113850.0,113840.0,0.05715]
[1761621313049,0.0938426,113850.0,113840.0,0.05715]
[1761621313250,0.0928426,113850.0,113840.0,0.05715]
[1761621314256,0.005,113850.0,113840.0,0.5841959]
[1761621314557,0.09662116,113880.0,113870.0,0.03533]
[1761621314857,0.35088738,113880.0,113870.0,0.05715]
[1761621316051,0.35488738,113880.0,113870.0,0.0164]
[1761621316452,0.35588738,113880.0,113870.0,0.0164]
[1761621316653,0.11715796,113880.0,113870.0,0.06015]
[1761621316853,0.35588738,113880.0,113870.0,0.06015]
[1761621317655,0.35588738,113880.0,113870.0,0.03833]
[1761621318254,0.35588738,113880.0,113870.0,0.0164]
[1761621318452,0.36469441,113880.0,113870.0,0.0164]
[1761621320555,0.11715796,113880.0,113870.0,0.06015]
[1761621320854,0.35588738,113880.0,113870.0,0.06015]
[1761621321156,0.95588738,113880.0,113870.0,0.06015]
[1761621321360,0.33154442,113880.0,113870.0,0.06015]
[1761621321555,0.092815,113880.0,113870.0,0.06015]
[1761621321950,0.092815,113880.0,113870.0,0.49923]
[1761621322362,0.33154442,113880.0,113870.0,0.49923]
[1761621322654,0.092815,113880.0,113870.0,0.49923]
[1761621323760,0.33154442,113880.0,113870.0,0.49923]
[1761621325556,0.33154442,113880.0,113870.0,0.06015]
[1761621325759,0.33154442,113880.0,113870.0,0.49923]
[1761621327464,0.092815,113880.0,113870.0,0.49923]
[1761621327864,0.092815,113880.0,113870.0,0.82578212]
[1761621328353,0.092815,113880.0,113870.0,0.5870527]
[1761621330464,0.092815,113880.0,113870.0,0.49923]
[1761621331352,0.0877948,113910.0,113900.0,0.01357]
[1761621331555,0.11209324,113910.0,113900.0,0.05724]
[1761621331859,0.11209324,113910.0,113900.0,0.4962]
[1761621331860,0.0877948,113910.0,113900.0,0.4962]
[1761621332861,0.0887948,113910.0,113900.0,0.4962]
[1761621333470,0.0877948,113910.0,113900.0,0.4962]
[1761621333769,0.0887948,113910.0,113900.0,0.4962]
[1761621334154,0.0927948,113910.0,113900.0,0.5222]
[1761621334768,0.0887948,113910.0,113900.0,0.4962]
[1761621334961,0.0917948,113910.0,113900.0,0.5202]
[1761621335156,0.0907948,113910.0,113900.0,0.5202]
[1761621335760,0.0907948,113910.0,113900.0,0.5192]
[1761621336166,0.0917948,113910.0,113900.0,0.5192]
[1761621344067,0.0917948,113910.0,113900.0,0.6069992]
[1761621346275,0.0917948,113910.0,113900.0,0.92699057]
[1761621346276,0.0917915,113910.0,113900.0,0.92699057]
[1761621346770,0.004,113910.0,113900.0,0.6069992]
[1761621347164,0.0917915,113910.0,113900.0,0.6069992]
[1761621348674,0.0917915,113910.0,113900.0,0.5192]
[1761621350074,0.004,113910.0,113900.0,0.6069992]
[1761621350376,0.004,113910.0,113900.0,0.65420248]
[1761621350764,0.0917915,113910.0,113900.0,0.56640328]
[1761621351881,0.004,113910.0,113900.0,0.65420248]
[1761621352176,0.0917915,113910.0,113900.0,0.65420248]
[1761621353676,0.0917915,113910.0,113900.0,0.80684463]
[1761621355771,0.0917915,113910.0,113900.0,0.5192]
[1761621356081,0.24443365,113910.0,113900.0,0.5192]
[1761621356378,0.0917915,113910.0,113900.0,0.5192]
[1761621357181,0.0917915,113910.0,113900.0,0.56640328]
[1761621357677,0.0917915,113910.0,113900.0,0.5192]
[1761621360879,0.41812079,113910.0,113900.0,0.08024]
[1761621361278,0.11283639,113910.0,113900.0,0.5192]
[1761621361479,0.11283639,113910.0,113900.0,0.08024]
[1761621361681,0.26547854,113910.0,113900.0,0.08024]
[1761621362181,0.11283639,113910.0,113900.0,0.08024]
[1761621362384,0.11283639,113910.0,113900.0,0.75964125]
[1761621362583,0.004,113910.0,113900.0,0.75964125]
[1761621362786,0.004,113910.0,113900.0,1.40684453]
[1761621363292,0.004,113910.0,113900.0,2.04964125]
[1761621365580,0.004,113910.0,113900.0,1.94431283]
[1761621365778,0.004,113910.0,113900.0,2.04964125]
[1761621365977,0.004,113910.0,113900.0,1.8969991]
[1761621366180,0.004,113910.0,113900.0,2.04964125]
[1761621366383,0.004,113910.0,113900.0,1.44964125]
[1761621366579,0.004,113910.0,113900.0,1.2969991]
[1761621366784,0.004,113910.0,113900.0,1.44964125]
[1761621367490,0.004,113910.0,113900.0,1.51250471]
[1761621367691,0.004,113910.0,113900.0,2.11250471]
[1761621368585,0.0917914,113910.0,113900.0,2.11250471]
[1761621368785,0.0917914,113910.0,113900.0,1.35986266]
[1761621368989,0.0917914,113910.0,113900.0,0.6069992]
[1761621369190,0.0917914,113910.0,113900.0,0.5192]
[1761621371093,0.0917914,113910.0,113900.0,0.75964155]
[1761621371794,0.004,113910.0,113900.0,0.82250501]
[1761621372101,0.0917914,113910.0,113900.0,0.82250501]
[1761621372894,0.004,113910.0,113900.0,0.29683155]
[1761621374299,0.0917914,113910.0,113900.0,0.29683155]
[1761621375202,0.0917914,113910.0,113900.0,0.20903215]
[1761621375398,0.0917914,113910.0,113900.0,0.29683125]
[1761621375603,0.0917914,113910.0,113900.0,0.1441891]
[1761621376600,0.1023614,113910.0,113900.0,0.05603]
[1761621376803,0.1129314,113910.0,113900.0,0.05603]
[1761621377202,0.27194953,113910.0,113900.0,0.05603]
[1761621377601,0.1129314,113910.0,113900.0,0.05603]
[1761621378002,0.1023614,113910.0,113900.0,0.05603]
[1761621378404,0.1023614,113910.0,113900.0,0.1438291]
[1761621378704,0.1023614,113910.0,113900.0,0.05603]
[1761621381005,0.1129314,113910.0,113900.0,0.05603]
[1761621382604,0.004,113910.0,113900.0,0.30320723]
[1761621383406,0.0917915,113910.0,113900.0,0.30320723]
[1761621386911,0.0917915,113910.0,113900.0,0.30320733]
[1761621387711,0.0917915,113910.0,113900.0,0.21540813]
[1761621388308,0.0917915,113910.0,113900.0,0.30320733]
[1761621389711,0.0917915,113910.0,113900.0,0.30319159]
[1761621390311,0.0917915,113910.0,113900.0,0.31070825]
[1761621392006,0.0917915,113910.0,113900.0,0.31034825]
[1761621392211,0.0917915,113910.0,113900.0,0.31070825]
[1761621392714,0.30411055,113910.0,113900.0,0.22290905]
[1761621393108,0.30411055,113910.0,113900.0,0.05639]
[1761621393708,0.4706296,113910.0,113900.0,0.05639]
[1761621393910,0.30411055,113910.0,113900.0,0.05639]
[1761621397510,0.4706296,113910.0,113900.0,0.05639]
[1761621397711,0.4959396,113910.0,113900.0,0.05639]
[1761621397918,0.32942055,113910.0,113900.0,0.05639]
[1761621398816,0.30411055,113910.0,113900.0,0.05639]
[1761621399214,0.1375915,113910.0,113900.0,0.1441894]
[1761621399410,0.1375915,113910.0,113900.0,0.22290905]
[1761621399715,0.30411055,113910.0,113900.0,0.22290905]
[1761621402018,0.1375915,113910.0,113900.0,0.22290905]
[1761621402218,0.30411055,113910.0,113900.0,0.22290905]
[1761621402914,0.30411055,113910.0,113900.0,0.05639]
[1761621403116,0.30411055,113910.0,113900.0,0.02158]
[1761621403320,0.30411055,113910.0,113900.0,0.04274]
[1761621403619,0.30411055,113910.0,113900.0,0.07124]
[1761621404220,0.32942055,113910.0,113900.0,0.07124]
[1761621404614,0.30411055,113910.0,113900.0,0.07124]
[1761621406626,0.30411055,113910.0,113900.0,0.32555825]
[1761621407726,0.30411055,113910.0,113900.0,0.23775905]
[1761621408022,0.1375915,113910.0,113900.0,0.32555825]
[1761621408227,0.1375915,113910.0,113900.0,0.1590392]
[1761621408428,0.1375915,113910.0,113900.0,0.32555825]
[1761621409624,0.30411055,113910.0,113900.0,0.32555825]
[1761621409829,0.30411055,113910.0,113900.0,0.23775905]
[1761621410128,0.30411055,113910.0,113900.0,0.07124]
[1761621410535,0.30411055,113910.0,113900.0,0.04274]
[1761621410536,0.1629015,113910.0,113900.0,0.04274]
[1761621410724,0.4959396,113910.0,113900.0,0.04238]
[1761621411228,0.4959396,113910.0,113900.0,0.02122]
[1761621412029,0.1335992,113900.0,113890.0,0.0561]
[1761621412330,0.32542825,113900.0,113890.0,0.04302]
[1761621413430,0.30011825,113900.0,113890.0,0.07152]
[1761621413626,0.30011825,113900.0,113890.0,0.07352]
[1761621413932,0.30311825,113900.0,113890.0,0.07352]
[1761621414635,0.32842825,113900.0,113890.0,0.04502]
[1761621415833,0.32842825,113900.0,113890.0,0.00236]
[1761621416332,0.32842825,113900.0,113890.0,0.002]
[1761621416535,0.32842825,113900.0,113890.0,0.0235]
[1761621416935,0.32842825,113900.0,113890.0,0.002]
[1761621419531,0.32842825,113900.0,113890.0,0.0235]
[1761621420130,0.32842825,113900.0,113890.0,0.06733]
[1761621420938,0.32842825,113900.0,113890.0,0.002]
[1761621421230,0.92842825,113900.0,113890.0,0.002]
[1761621421437,0.1813546,113880.0,113870.0,0.10479]
[1761621421639,0.34787365,113880.0,113870.0,0.10515]
[1761621422932,0.1813546,113880.0,113870.0,0.10515]
[1761621423139,0.35087365,113880.0,113870.0,0.11115]
[1761621423433,0.36144365,113880.0,113870.0,0.00636]
[1761621423639,0.0878377,113850.0,113840.0,0.28192119]
[1761621423939,0.33362118,113850.0,113840.0,0.33494496]
[1761621424127,0.33362118,113850.0,113840.0,0.24746296]
[1761621425135,0.33362118,113850.0,113840.0,0.1205]
[1761621425527,0.16710213,113850.0,113840.0,0.1205]
[1761621425727,0.33362118,113850.0,113840.0,0.1205]
[1761621426240,0.33862118,113850.0,113840.0,0.1245]
[1761621427238,0.33362118,113850.0,113840.0,0.1155]
[1761621427446,0.33662118,113850.0,113840.0,0.1175]
[1761621427834,0.34535118,113850.0,113840.0,0.09371]
[1761621428939,0.51187023,113850.0,113840.0,0.002]
[1761621429135,0.34535118,113850.0,113840.0,0.002]
[1761621429338,0.1710054,113840.0,113830.0,0.10574]
[1761621429538,0.33752445,113840.0,113830.0,0.10574]
[1761621429739,0.33752445,113840.0,113830.0,0.2383703]
[1761621430637,0.34452445,113840.0,113830.0,0.2383703]
[1761621431235,0.007,113840.0,113830.0,0.49274245]
[1761621431431,0.0948454,113840.0,113830.0,0.49274245]
[1761621432140,0.007,113840.0,113830.0,0.49274245]
[1761621432840,0.0948454,113840.0,113830.0,0.49274245]
[1761621434042,0.1351854,113840.0,113830.0,0.49274245]
[1761621434341,0.1780054,113840.0,113830.0,0.49274245]
[1761621435942,0.04734,113840.0,113830.0,0.49274245]
[1761621436144,0.0948454,113840.0,113830.0,0.49274245]
[1761621436345,0.007,113840.0,113830.0,0.49274245]
[1761621436538,0.0878327,113860.0,113850.0,0.1950277]
[1761621436737,0.0878327,113860.0,113850.0,0.36190675]
[1761621437247,0.1709896,113870.0,113860.0,0.10719]
[1761621437440,0.1709896,113870.0,113860.0,0.27406905]
[1761621438643,0.1709896,113870.0,113860.0,0.36189905]
[1761621439045,0.1709896,113870.0,113860.0,0.27406905]
[1761621439242,0.33750865,113870.0,113860.0,0.10755]
[1761621439639,0.33850865,113870.0,113860.0,0.10755]
[1761621440437,0.34550865,113870.0,113860.0,0.11055]
[1761621441043,0.35007865,113870.0,113860.0,0.10755]
[1761621441244,0.35407865,113870.0,113860.0,0.10955]
[1761621441447,0.34150865,113870.0,113860.0,0.10955]
[1761621445247,0.34150865,113870.0,113860.0,0.08431]
[1761621445451,0.95407865,113870.0,113860.0,0.002]
[1761621446151,0.95407865,113870.0,113860.0,0.04361]
[1761621446353,0.35407865,113870.0,113860.0,0.002]
[1761621446855,0.35407865,113870.0,113860.0,0.04361]
[1761621447448,0.35407865,113870.0,113860.0,0.002]
[1761621448352,0.35407865,113870.0,113860.0,0.04361]
[1761621449454,0.37808411,113870.0,113860.0,0.04361]
[1761621450368,0.54460316,113870.0,113860.0,0.002]
[1761621450655,0.1680577,113850.0,113840.0,0.10799]
[1761621450954,0.33457675,113850.0,113840.0,0.10799]
[1761621451155,0.33457675,113850.0,113840.0,0.10835]
[1761621451755,0.33479754,113850.0,113840.0,0.10835]
[1761621452060,0.32727102,113850.0,113840.0,0.10835]
[1761621452562,0.33027102,113850.0,113840.0,0.11335]
[1761621453254,0.34233102,113850.0,113840.0,0.08811]
[1761621453453,0.36636083,113850.0,113840.0,0.08811]
[1761621453650,0.36336083,113850.0,113840.0,0.10576]
[1761621453851,0.35330083,113850.0,113840.0,0.10876]
[1761621455364,0.36879408,113850.0,113840.0,0.10876]
[1761621455662,0.36536083,113850.0,113840.0,0.08575]
[1761621455854,0.20614751,113850.0,113840.0,0.08575]
[1761621456049,0.36536083,113850.0,113840.0,0.0428]
[1761621456462,0.36536083,113850.0,113840.0,0.003]
[1761621457759,0.1680808,113820.0,113810.0,0.1054]
[1761621457957,0.1680808,113820.0,113810.0,0.10576]
[1761621458156,0.1680808,113820.0,113810.0,0.23788503]
[1761621458352,0.1680808,113820.0,113810.0,0.32575363]
[1761621458562,0.1680808,113820.0,113810.0,0.34183707]
[1761621458754,0.1680808,113820.0,113810.0,0.32575363]
[1761621458958,0.1720808,113820.0,113810.0,0.33275363]
[1761621459158,0.1720808,113820.0,113810.0,0.33575363]
[1761621459859,0.1720808,113820.0,113810.0,0.33275363]
[1761621460059,0.1710808,113820.0,113810.0,0.24488503]
[1761621461758,0.1710808,113820.0,113810.0,0.11276]
[1761621466859,0.1831408,113820.0,113810.0,0.09011]
[1761621467059,0.1831408,113820.0,113810.0,0.11276]
[1761621467763,0.1831408,113820.0,113810.0,0.09011]
[1761621468770,0.34235412,113820.0,113810.0,0.00736]
[1761621468972,0.34235412,113820.0,113810.0,0.007]
[1761621469571,0.36660705,113820.0,113810.0,0.007]
[1761621470370,0.34235412,113820.0,113810.0,0.007]
[1761621470673,0.36660304,113820.0,113810.0,0.0468]
[1761621470973,0.1831408,113820.0,113810.0,0.08975]
[1761621471168,0.34235412,113820.0,113810.0,0.08975]
[1761621472368,0.1710808,113820.0,113810.0,0.1124]
[1761621472572,0.1710808,113820.0,113810.0,0.11276]
[1761621474274,0.1851908,113820.0,113810.0,0.09011]
[1761621474474,0.33029412,113820.0,113810.0,0.11276]
[1761621475073,0.1710808,113820.0,113810.0,0.11276]
[1761621477980,0.1710808,113820.0,113810.0,0.35984192]
[1761621478167,0.1304908,113820.0,113810.0,0.35984192]
[1761621478372,0.0908608,113820.0,113810.0,0.35984192]
[1761621478579,0.0908608,113820.0,113810.0,0.2006286]
[1761621478779,0.0908608,113820.0,113810.0,0.35984192]
[1761621479075,0.003,113820.0,113810.0,0.35984192]
[1761621479377,0.003,113820.0,113810.0,0.49075697]
[1761621480075,0.0878498,113840.0,113830.0,0.0878531]
[1761621480280,0.0878498,113840.0,113830.0,0.34595642]
[1761621480481,0.1266098,113840.0,113830.0,0.34631642]
[1761621481173,0.1651898,113840.0,113830.0,0.25846332]
[1761621481373,0.1711898,113840.0,113830.0,0.25946332]
[1761621481669,0.1711898,113840.0,113830.0,0.10025]
[1761621482380,0.1711898,113840.0,113830.0,0.1881031]
[1761621483572,0.006,113840.0,113830.0,0.1881031]
[1761621485383,0.0938454,113840.0,113830.0,0.1881031]
[1761621485881,0.1711854,113840.0,113830.0,0.1881031]
[1761621486578,0.1711854,113840.0,113830.0,0.10025]
[1761621487591,0.1711854,113840.0,113830.0,0.1881031]
[1761621488995,0.1711854,113840.0,113830.0,0.10025]
[1761621489192,0.34245872,113840.0,113830.0,0.07952]
[1761621489394,0.34245872,113840.0,113830.0,0.07916]
[1761621489591,0.34245872,113840.0,113830.0,0.001]
[1761621490096,0.94245872,113840.0,113830.0,0.001]
[1761621490293,0.34245872,113840.0,113830.0,0.001]
[1761621492296,0.34245872,113840.0,113830.0,0.03548]
[1761621492592,0.34245872,113840.0,113830.0,0.06761]
[1761621492793,0.33039872,113840.0,113830.0,0.08676]
[1761621493696,0.1711854,113840.0,113830.0,0.08676]
[1761621495300,0.33039872,113840.0,113830.0,0.08676]
[1761621495499,0.33039872,113840.0,113830.0,0.08712]
[1761621497694,0.1711854,113840.0,113830.0,0.1749731]
[1761621498201,0.1711854,113840.0,113830.0,0.33418642]
[1761621498400,0.1326054,113840.0,113830.0,0.33418642]
[1761621498796,0.1669954,113840.0,113830.0,0.33418642]
[1761621499302,0.1669954,113840.0,113830.0,0.1749731]
[1761621499499,0.1669954,113840.0,113830.0,0.1746131]
[1761621499802,0.1669954,113840.0,113830.0,0.1749731]
[1761621500103,0.0938454,113840.0,113830.0,0.1749731]
[1761621500495,0.1621454,113840.0,113830.0,0.1749731]
[1761621500905,0.0938454,113840.0,113830.0,0.1749731]
[1761621501404,0.006,113840.0,113830.0,0.33418642]
[1761621501903,0.0938454,113840.0,113830.0,0.33418642]
[1761621503399,0.006,113840.0,113830.0,0.33418642]
[1761621503699,0.006,113840.0,113830.0,0.7749731]
[1761621504003,0.006,113840.0,113830.0,0.93418642]
[1761621504205,0.006,113840.0,113830.0,1.06560761]
[1761621507503,0.006,113840.0,113830.0,0.46560761]
[1761621508209,0.006,113840.0,113830.0,0.30639429]
[1761621508398,0.006,113840.0,113830.0,0.46560761]
[1761621508806,0.006,113840.0,113830.0,0.30639429]
[1761621509105,0.006,113840.0,113830.0,0.46560761]
[1761621509302,0.0878311,113860.0,113850.0,0.01829]
[1761621509502,0.1543411,113860.0,113850.0,0.33418092]
[1761621509703,0.1543411,113860.0,113850.0,0.33454092]
[1761621509902,0.0878311,113860.0,113850.0,0.33454092]
[1761621510109,0.1543378,113870.0,113860.0,0.1749599]
[1761621510301,0.1543378,113870.0,113860.0,0.33453322]
[1761621510805,0.1543308,113880.0,113870.0,0.1749522]
[1761621510999,0.1543308,113880.0,113870.0,0.33452552]
[1761621511305,0.1543308,113880.0,113870.0,0.36337935]
[1761621511605,0.1543216,113890.0,113880.0,0.08713]
[1761621511800,0.1543216,113890.0,113880.0,0.08749]
[1761621511994,0.1543216,113890.0,113880.0,0.08713]
[1761621512212,0.32092649,113890.0,113880.0,0.25373489]
[1761621512499,0.32092649,113890.0,113880.0,0.08749]
[1761621512707,0.32092649,113890.0,113880.0,0.25409489]
[1761621513906,0.32292649,113890.0,113880.0,0.25609489]
[1761621515003,0.32292649,113890.0,113880.0,0.08949]
[1761621515507,0.1563216,113890.0,113880.0,0.1773045]
[1761621515708,0.1563216,113890.0,113880.0,0.34390939]
[1761621518309,0.32292649,113890.0,113880.0,0.34390939]
[1761621518512,0.1563216,113890.0,113880.0,0.34390939]
[1761621519207,0.002,113890.0,113880.0,0.34390939]
[1761621519408,0.0898068,113890.0,113880.0,0.34390939]
[1761621519611,0.1563168,113890.0,113880.0,0.34390939]
[1761621521110,0.002,113890.0,113880.0,0.34390939]
[1761621521510,0.002,113890.0,113880.0,0.1773045]
[1761621521711,0.002,113890.0,113880.0,0.34390939]
[1761621522012,0.002,113890.0,113880.0,0.51051428]
[1761621522216,0.002,113890.0,113880.0,0.34390939]
[1761621523816,0.002,113890.0,113880.0,0.51051428]
[1761621524012,0.002,113890.0,113880.0,0.34390939]
[1761621524512,0.002,113890.0,113880.0,0.51051428]
[1761621526515,0.0898068,113890.0,113880.0,0.34390939]
[1761621526706,0.1563168,113890.0,113880.0,0.34390939]
[1761621528520,0.03649,113890.0,113880.0,0.34390939]
[1761621528719,0.002,113890.0,113880.0,0.34390939]
[1761621529215,0.002,113890.0,113880.0,0.51051428]
[1761621530422,0.0898068,113890.0,113880.0,0.1773045]
[1761621530624,0.0898068,113890.0,113880.0,0.34390939]
[1761621530825,0.1563168,113890.0,113880.0,0.34390939]
[1761621531124,0.1242968,113890.0,113880.0,0.34390939]
[1761621531621,0.32292169,113890.0,113880.0,0.08913]
[1761621531825,0.1563168,113890.0,113880.0,0.08913]
[1761621532029,0.32292169,113890.0,113880.0,0.25573489]
[1761621533424,0.32782169,113890.0,113880.0,0.07084]
[1761621533634,0.32292169,113890.0,113880.0,0.25573489]
[1761621534117,0.1563168,113890.0,113880.0,0.25609489]
[1761621536131,0.32292169,113890.0,113880.0,0.25609489]
[1761621536722,0.32292169,113890.0,113880.0,0.08949]
[1761621538230,0.32292169,113890.0,113880.0,0.25609489]
[1761621538534,0.32292169,113890.0,113880.0,0.34390939]
[1761621539038,0.1563168,113890.0,113880.0,0.34390939]
[1761621539230,0.18015578,113890.0,113880.0,0.34390939]
[1761621539427,0.1563168,113890.0,113880.0,0.34390939]
[1761621540139,0.18016639,113890.0,113880.0,0.34390939]
[1761621540334,0.002,113890.0,113880.0,0.51051428]
[1761621541737,0.1481885,113910.0,113900.0,0.07715]
[1761621541937,0.17204377,113910.0,113900.0,0.07715]
[1761621542135,0.17204377,113910.0,113900.0,0.24375489]
[1761621543145,0.17704377,113910.0,113900.0,0.24575489]
[1761621543335,0.17804377,113910.0,113900.0,0.24575489]
[1761621545440,0.34464866,113910.0,113900.0,0.07915]
[1761621545744,0.51125355,113910.0,113900.0,0.002]
[1761621545938,0.34464866,113910.0,113900.0,0.06298]
[1761621546343,0.34464866,113910.0,113900.0,0.07915]
[1761621547148,0.17804377,113910.0,113900.0,0.07915]
[1761621547348,0.34464866,113910.0,113900.0,0.07915]
[1761621548640,0.17804377,113910.0,113900.0,0.07915]
[1761621548851,0.34464866,113910.0,113900.0,0.24575489]
[1761621549350,0.17804377,113910.0,113900.0,0.24575489]
[1761621549645,0.17804377,113910.0,113900.0,0.07915]
[1761621549841,0.34464866,113910.0,113900.0,0.07915]
[1761621550645,0.34464866,113910.0,113900.0,0.06298]
[1761621550836,0.34464866,113910.0,113900.0,0.0743]
[1761621551536,0.34464866,113910.0,113900.0,0.24090489]
[1761621551948,0.17804377,113910.0,113900.0,0.24090489]